bitfinex-derivatives/quotes_BTCF0:USTF0_20250117
["timestamp","ask_amount","ask_price","bid_price","bid_amount"]
[1737083986040,0.049448,101130.0,101120.0,0.495952]
[1737083989241,0.049448,101130.0,101120.0,0.50605047]
[1737083995953,0.049448,101130.0,101120.0,0.684166]
[1737083998350,0.049448,101130.0,101120.0,0.50605047]
[1737083999154,0.049448,101130.0,101120.0,0.60008368]
[1737083999961,0.093045,101140.0,101130.0,0.049448]
[1737084000452,0.29719746,101140.0,101130.0,0.049448]
[1737084000855,0.29719746,101140.0,101130.0,0.03144799]
[1737084001860,0.093045,101140.0,101130.0,0.03144799]
[1737084002062,0.453845,101140.0,101130.0,0.03144799]
[1737084002452,0.4044,101140.0,101130.0,0.1254812]
[1737084002755,0.65749346,101150.0,101140.0,0.049444]
[1737084002756,0.61439346,101150.0,101140.0,0.049444]
[1737084002964,0.61439346,101150.0,101140.0,0.14347721]
[1737084003348,0.61439346,101150.0,101140.0,0.049444]
[1737084003953,0.410241,101150.0,101140.0,0.049444]
[1737084004153,0.049441,101150.0,101140.0,0.049444]
[1737084004348,0.410241,101150.0,101140.0,0.049444]
[1737084004553,0.049441,101150.0,101140.0,0.049444]
[1737084005263,0.049444,101140.0,101130.0,0.17811553]
[1737084005460,0.131444,101140.0,101130.0,0.22756453]
[1737084005651,0.049444,101140.0,101130.0,0.32159774]
[1737084005968,0.41024,101150.0,101140.0,0.049444]
[1737084007554,0.41024,101150.0,101140.0,0.14347721]
[1737084008048,0.41024,101150.0,101140.0,0.049444]
[1737084009463,0.049446,101140.0,101130.0,0.049448]
[1737084009651,0.091046,101140.0,101130.0,0.049448]
[1737084010969,0.135646,101140.0,101130.0,0.049448]
[1737084013368,0.135646,101140.0,101130.0,0.05922001]
[1737084016170,0.049446,101140.0,101130.0,0.15325322]
[1737084016353,0.049446,101140.0,101130.0,0.19605322]
[1737084017567,0.049446,101140.0,101130.0,0.05922001]
[1737084017770,0.134546,101140.0,101130.0,0.05922001]
[1737084018070,0.134546,101140.0,101130.0,0.15325322]
[1737084020973,0.134546,101140.0,101130.0,0.05922001]
[1737084022271,0.58937921,101140.0,101120.0,0.67406853]
[1737084022476,0.50428221,101130.0,101120.0,0.17811553]
[1737084022675,0.410249,101130.0,101120.0,0.17811553]
[1737084023267,0.50428221,101130.0,101110.0,0.05094034]
[1737084023467,0.54768621,101120.0,101110.0,0.00148334]
[1737084023671,0.59008621,101120.0,101110.0,0.00148334]
[1737084024174,0.59008621,101120.0,101090.0,0.22758253]
[1737084024175,0.049463,101100.0,101090.0,0.22758253]
[1737084024365,0.049463,101100.0,101090.0,0.23981058]
[1737084024765,0.092863,101100.0,101090.0,0.06169505]
[1737084024969,0.0434,101100.0,101090.0,0.15572826]
[1737084025171,0.091854,101120.0,101090.0,0.61056147]
[1737084025381,0.453649,101130.0,101120.0,0.049453]
[1737084025576,0.453649,101130.0,101120.0,0.14348621]
[1737084025773,0.453649,101130.0,101120.0,0.1254862]
[1737084025967,0.092849,101130.0,101120.0,0.1254862]
[1737084027084,0.092849,101130.0,101120.0,0.03145299]
[1737084028576,0.092849,101130.0,101120.0,0.1254862]
[1737084028780,0.049449,101130.0,101120.0,0.1254862]
[1737084028970,0.049449,101130.0,101120.0,0.2191862]
[1737084029276,0.9555829,101140.0,101120.0,0.59255033]
[1737084029477,0.9555829,101140.0,101130.0,0.14348221]
[1737084029980,0.51819929,101140.0,101130.0,0.14348221]
[1737084030179,0.51819929,101140.0,101130.0,0.049449]
[1737084030380,0.15739929,101140.0,101130.0,0.049449]
[1737084030676,0.11649929,101140.0,101130.0,0.14348221]
[1737084030881,0.11649929,101140.0,101130.0,0.1254822]
[1737084031066,0.06919929,101140.0,101130.0,0.1254822]
[1737084031681,0.049445,101140.0,101130.0,0.1254822]
[1737084034177,0.4596237,101150.0,101140.0,0.049444]
[1737084034378,0.0988237,101150.0,101140.0,0.14347721]
[1737084034691,0.0988237,101150.0,101140.0,0.50427721]
[1737084035982,0.0988237,101150.0,101140.0,0.4862772]
[1737084039177,0.30297616,101150.0,101140.0,0.4862772]
[1737084040777,0.30297616,101150.0,101140.0,0.45483321]
[1737084041590,0.30297616,101150.0,101140.0,0.50427721]
[1737084042085,0.0988237,101150.0,101140.0,0.50427721]
[1737084043087,0.0988237,101150.0,101140.0,0.52006831]
[1737084045783,0.0988237,101150.0,101140.0,0.5020683]
[1737084048982,0.0988237,101150.0,101140.0,0.5934683]
[1737084050782,0.0988237,101150.0,101140.0,0.57546829]
[1737084055395,0.0988237,101150.0,101140.0,0.64070656]
[1737084056595,0.0988237,101150.0,101140.0,0.62270655]
[1737084057696,0.09734,101150.0,101140.0,0.62270655]
[1737084060392,0.34378746,101160.0,101140.0,0.62270655]
[1737084060596,0.34378746,101160.0,101150.0,0.11107473]
[1737084060897,0.34378746,101160.0,101150.0,0.09307472]
[1737084064598,0.37286615,101160.0,101150.0,0.09307472]
[1737084064796,0.73366615,101160.0,101150.0,0.09307472]
[1737084065799,0.73366615,101160.0,101150.0,0.07507471]
[1737084066201,0.68756615,101160.0,101150.0,0.07507471]
[1737084067500,0.32676615,101160.0,101150.0,0.07507471]
[1737084067999,0.53171979,101160.0,101150.0,0.07507471]
[1737084068393,0.53171979,101160.0,101150.0,0.02563571]
[1737084070797,0.53171979,101160.0,101150.0,0.0076357]
[1737084071802,0.89251979,101160.0,101150.0,0.0076357]
[1737084073102,0.73556615,101160.0,101150.0,0.0076357]
[1737084075700,0.73556615,101160.0,101150.0,0.06163573]
[1737084075900,0.049439,101150.0,101140.0,0.55070451]
[1737084076101,0.049439,101150.0,101140.0,0.61234024]
[1737084076607,0.049439,101150.0,101140.0,0.55070451]
[1737084076807,0.098039,101150.0,101140.0,0.40986251]
[1737084077110,0.098039,101150.0,101140.0,0.45930651]
[1737084077916,0.098039,101150.0,101140.0,0.12687083]
[1737084078215,0.30299264,101150.0,101140.0,0.12687083]
[1737084078415,0.72542837,101150.0,101130.0,0.049447]
[1737084078607,0.049449,101130.0,101120.0,0.65000326]
[1737084078907,0.049449,101130.0,101120.0,0.53891553]
[1737084079100,0.095949,101130.0,101120.0,0.42243573]
[1737084079506,0.095949,101130.0,101120.0,0.48407146]
[1737084079902,0.095949,101130.0,101120.0,0.49964511]
[1737084080712,0.095949,101130.0,101120.0,0.4816451]
[1737084081507,0.095949,101130.0,101120.0,0.42000937]
[1737084085712,0.095949,101130.0,101120.0,0.07720938]
[1737084090717,0.095949,101130.0,101120.0,0.05920937]
[1737084091415,0.095949,101130.0,101120.0,0.10866237]
[1737084095822,0.095949,101130.0,101120.0,0.09066236]
[1737084099022,0.049443,101150.0,101130.0,0.049447]
[1737084099217,0.47187873,101150.0,101130.0,0.25038273]
[1737084099424,0.049444,101140.0,101130.0,0.25038273]
[1737084100021,0.11107973,101140.0,101130.0,0.049447]
[1737084100223,0.20197973,101140.0,101130.0,0.049447]
[1737084100722,0.20197973,101140.0,101120.0,0.10866137]
[1737084100723,0.049449,101130.0,101120.0,0.10866137]
[1737084100923,0.049449,101130.0,101120.0,0.46946137]
[1737084101619,0.049449,101130.0,101120.0,0.48290128]
[1737084102235,0.049449,101130.0,101120.0,0.54453701]
[1737084102724,0.29919764,101140.0,101130.0,0.049449]
[1737084102923,0.25439764,101140.0,101130.0,0.25238473]
[1737084103136,0.20495364,101140.0,101130.0,0.67482046]
[1737084103819,0.25439364,101150.0,101140.0,0.049444]
[1737084104021,0.25439364,101150.0,101140.0,0.53351546]
[1737084104828,0.04944,101150.0,101140.0,0.53351546]
[1737084105525,0.04944,101150.0,101140.0,0.50415667]
[1737084107929,0.504036,101160.0,101150.0,0.049439]
[1737084108220,0.504036,101160.0,101150.0,0.14335167]
[1737084109222,0.504036,101160.0,101150.0,0.049439]
[1737084110722,0.504036,101160.0,101150.0,0.03143899]
[1737084111416,0.049439,101150.0,101140.0,0.5178183]
[1737084111620,0.049439,101150.0,101140.0,0.42390563]
[1737084111826,0.14335167,101150.0,101140.0,0.01366263]
[1737084112128,0.049439,101150.0,101130.0,0.8235752]
[1737084112428,0.410239,101150.0,101130.0,0.8235752]
[1737084112729,0.410239,101150.0,101130.0,0.28465967]
[1737084112925,0.049444,101140.0,101130.0,0.28465967]
[1737084113232,0.096644,101140.0,101130.0,0.60095967]
[1737084113623,0.096644,101140.0,101130.0,0.61470721]
[1737084113930,0.096644,101140.0,101130.0,0.25390721]
[1737084115131,0.096644,101140.0,101130.0,0.61470721]
[1737084116024,0.096644,101140.0,101130.0,0.25390721]
[1737084117241,0.55135667,101140.0,101130.0,0.06319454]
[1737084117433,0.64575667,101140.0,101130.0,0.06319454]
[1737084118230,0.551844,101140.0,101130.0,0.06319454]
[1737084119928,0.191044,101140.0,101130.0,0.06319454]
[1737084120633,0.143244,101140.0,101130.0,0.06319454]
[1737084120934,0.48762479,101150.0,101140.0,0.049444]
[1737084121139,0.53162479,101150.0,101140.0,0.14335667]
[1737084121633,0.53162479,101150.0,101140.0,0.049444]
[1737084121935,0.89242479,101150.0,101140.0,0.049444]
[1737084122440,0.45424,101150.0,101140.0,0.049444]
[1737084123625,0.09344,101150.0,101140.0,0.049444]
[1737084124037,0.45424,101150.0,101140.0,0.049444]
[1737084124746,0.503684,101150.0,101130.0,0.29600721]
[1737084126037,0.142884,101150.0,101130.0,0.29600721]
[1737084126245,0.503684,101150.0,101130.0,0.29600721]
[1737084126535,0.049444,101140.0,101130.0,0.15659454]
[1737084126926,0.049444,101140.0,101130.0,0.06319454]
[1737084127125,0.410244,101140.0,101130.0,0.06319454]
[1737084127738,0.094844,101140.0,101130.0,0.06319454]
[1737084128236,0.53302879,101140.0,101130.0,0.06319454]
[1737084129027,0.89382879,101140.0,101130.0,0.06319454]
[1737084129229,0.68887515,101140.0,101130.0,0.06319454]
[1737084130527,0.68887515,101140.0,101130.0,0.01374754]
[1737084130730,0.77804382,101140.0,101120.0,0.049452]
[1737084131038,0.095949,101130.0,101120.0,0.049452]
[1737084131240,0.095949,101130.0,101120.0,0.06282871]
[1737084131439,0.35809476,101130.0,101120.0,0.15674138]
[1737084132534,0.3007765,101130.0,101120.0,0.06282871]
[1737084133436,0.75548917,101130.0,101100.0,0.45471267]
[1737084133645,0.049458,101110.0,101100.0,0.50417367]
[1737084134035,0.049458,101110.0,101100.0,0.51763395]
[1737084135348,0.049458,101110.0,101100.0,0.69574948]
[1737084136135,0.094755,101120.0,101110.0,0.049458]
[1737084136334,0.094755,101120.0,101110.0,0.14337067]
[1737084136738,0.094755,101120.0,101110.0,0.049458]
[1737084136934,0.094755,101120.0,101110.0,0.14337067]
[1737084139044,0.455555,101120.0,101110.0,0.14337067]
[1737084139239,0.094755,101120.0,101110.0,0.14337067]
[1737084140234,0.094755,101120.0,101110.0,0.049458]
[1737084141842,0.455555,101120.0,101100.0,0.15683495]
[1737084142048,0.410258,101110.0,101100.0,0.06292228]
[1737084143929,0.455258,101110.0,101100.0,0.06292228]
[1737084144125,0.455258,101110.0,101100.0,0.01346028]
[1737084144126,0.54917067,101110.0,101100.0,0.01346028]
[1737084144329,0.54917067,101110.0,101090.0,0.6477614]
[1737084144544,0.455258,101110.0,101090.0,0.6477614]
[1737084146342,0.455258,101110.0,101090.0,0.6477604]
[1737084147344,0.455258,101110.0,101090.0,0.6972244]
[1737084147543,0.455258,101110.0,101090.0,0.6477604]
[1737084148038,0.455258,101110.0,101090.0,0.64627667]
[1737084148338,0.455258,101110.0,101090.0,0.66274158]
[1737084148538,0.504721,101110.0,101090.0,0.66274158]
[1737084148749,0.50472,101110.0,101090.0,0.66274158]
[1737084149046,0.455258,101110.0,101090.0,0.71220558]
[1737084149235,0.455258,101110.0,101090.0,0.66274158]
[1737084149845,0.50472,101110.0,101090.0,0.66274158]
[1737084150542,0.455258,101110.0,101090.0,0.71220658]
[1737084151145,0.455258,101110.0,101090.0,0.66274158]
[1737084151746,0.455258,101110.0,101090.0,0.71220558]
[1737084152047,0.455258,101110.0,101090.0,0.66274158]
[1737084152342,0.455258,101110.0,101090.0,0.42672891]
[1737084152546,0.049463,101100.0,101090.0,0.42672891]
[1737084152741,0.049463,101100.0,101090.0,0.52064158]
[1737084153541,0.049463,101100.0,101090.0,0.42672891]
[1737084155137,0.049463,101100.0,101090.0,0.52064158]
[1737084155846,0.095863,101100.0,101090.0,0.42672891]
[1737084156649,0.141763,101100.0,101090.0,0.42672891]
[1737084161853,0.141763,101100.0,101090.0,0.06592891]
[1737084163442,0.20346904,101100.0,101090.0,0.12763495]
[1737084167553,0.20346904,101100.0,101090.0,0.06592891]
[1737084174160,0.20346904,101100.0,101090.0,0.01646491]
[1737084174449,0.20346904,101100.0,101080.0,0.42250604]
[1737084174450,0.049468,101090.0,101080.0,0.049471]
[1737084174654,0.15797404,101090.0,101080.0,0.07013623]
[1737084176652,0.049473,101080.0,101070.0,0.3608]
[1737084176856,0.11117904,101080.0,101070.0,0.410276]
[1737084177158,0.11117904,101080.0,101070.0,0.43155436]
[1737084178753,0.049473,101080.0,101070.0,0.4932604]
[1737084180864,0.049473,101080.0,101070.0,0.5299604]
[1737084181665,0.049473,101080.0,101070.0,0.5753604]
[1737084182669,0.11117904,101080.0,101070.0,0.5753604]
[1737084182969,0.11117904,101080.0,101070.0,0.10337836]
[1737084183871,0.17288508,101080.0,101070.0,0.10337836]
[1737084184070,0.48421208,101080.0,101060.0,0.46561885]
[1737084184264,0.47198404,101070.0,101060.0,0.46561885]
[1737084184566,0.47198404,101070.0,101060.0,0.17811553]
[1737084184776,0.51868404,101070.0,101060.0,0.17811553]
[1737084185469,0.55107759,101070.0,101060.0,0.17811553]
[1737084185871,0.55107759,101070.0,101060.0,0.16011552]
[1737084186077,0.55107759,101070.0,101050.0,0.56263665]
[1737084186078,0.049483,101060.0,101050.0,0.56263665]
[1737084186274,0.14358259,101060.0,101050.0,0.51314965]
[1737084186472,0.14358259,101060.0,101050.0,0.15234965]
[1737084186672,0.14358259,101060.0,101050.0,0.10414965]
[1737084187180,0.049488,101050.0,101040.0,0.20960652]
[1737084187475,0.049488,101050.0,101040.0,0.137091]
[1737084189079,0.049488,101050.0,101040.0,0.15798838]
[1737084189281,0.049488,101050.0,101040.0,0.61288797]
[1737084189785,0.049488,101050.0,101040.0,0.07038838]
[1737084190079,0.14358759,101050.0,101040.0,0.07038838]
[1737084190974,0.049488,101050.0,101040.0,0.07038838]
[1737084194181,0.049488,101050.0,101040.0,0.43118838]
[1737084200289,0.57260931,101070.0,101060.0,0.049483]
[1737084200290,0.55107859,101070.0,101060.0,0.049483]
[1737084200791,0.55107859,101070.0,101060.0,0.03148299]
[1737084202989,0.456979,101070.0,101060.0,0.03148299]
[1737084203190,0.410279,101070.0,101060.0,0.03148299]
[1737084204496,0.410279,101070.0,101060.0,0.05285806]
[1737084204981,0.2543015,101080.0,101070.0,0.049478]
[1737084205293,0.2048275,101080.0,101070.0,0.57837759]
[1737084205789,0.49551709,101080.0,101070.0,0.56037758]
[1737084205976,0.49551709,101080.0,101070.0,0.46627799]
[1737084206689,0.50436859,101090.0,101070.0,0.46627799]
[1737084209586,0.049473,101080.0,101070.0,0.46627799]
[1737084210382,0.049473,101080.0,101070.0,0.43037799]
[1737084210793,0.049473,101080.0,101070.0,0.3989]
[1737084210994,0.049473,101080.0,101070.0,0.448377]
[1737084215191,0.049473,101080.0,101070.0,0.54247659]
[1737084215796,0.049473,101080.0,101070.0,0.52447658]
[1737084218199,0.14357259,101080.0,101060.0,0.46815707]
[1737084218395,0.049478,101070.0,101060.0,0.46815707]
[1737084218699,0.049478,101070.0,101060.0,0.43165707]
[1737084221598,0.049478,101070.0,101060.0,0.38217507]
[1737084221989,0.14357759,101070.0,101060.0,0.38217507]
[1737084222187,0.50437759,101070.0,101060.0,0.02137507]
[1737084222391,0.50437759,101070.0,101050.0,0.3608]
[1737084222392,0.50437759,101070.0,101040.0,0.41029]
[1737084222591,0.049493,101040.0,101030.0,0.72433453]
[1737084222892,0.049493,101040.0,101030.0,0.77993412]
[1737084223094,0.57549259,101040.0,101030.0,0.23653853]
[1737084223302,0.56389959,101040.0,101020.0,0.41178639]
[1737084223601,0.049497,101030.0,101020.0,0.41178639]
[1737084223993,0.049497,101030.0,101020.0,0.36228439]
[1737084224595,0.049497,101030.0,101020.0,0.37900645]
[1737084225403,0.049497,101030.0,101020.0,0.47310604]
[1737084227700,0.519294,101040.0,101020.0,0.52260504]
[1737084227907,0.085194,101040.0,101030.0,0.50439659]
[1737084228199,0.25398801,101050.0,101030.0,0.53979659]
[1737084228399,0.48721916,101050.0,101040.0,0.09409959]
[1737084228602,0.48721916,101050.0,101040.0,0.14359259]
[1737084229505,0.04949,101050.0,101040.0,0.14359259]
[1737084230704,0.04949,101050.0,101040.0,0.12559258]
[1737084232801,0.04949,101050.0,101040.0,0.14303237]
[1737084233307,0.04949,101050.0,101040.0,0.06693279]
[1737084233612,0.04949,101050.0,101040.0,0.42773279]
[1737084234296,0.113085,101060.0,101040.0,0.52183238]
[1737084234496,0.162569,101060.0,101050.0,0.049488]
[1737084234696,0.089069,101060.0,101050.0,0.049488]
[1737084234905,0.050969,101060.0,101050.0,0.50438759]
[1737084236007,0.049484,101060.0,101050.0,0.53778759]
[1737084236708,0.049484,101060.0,101050.0,0.51978758]
[1737084237506,0.118279,101070.0,101060.0,0.049483]
[1737084237709,0.0332,101080.0,101060.0,0.45489959]
[1737084237907,0.082677,101080.0,101070.0,0.049478]
[1737084238612,0.53757659,101080.0,101060.0,0.50438159]
[1737084238913,0.049478,101070.0,101060.0,0.410282]
[1737084240704,0.049478,101070.0,101060.0,0.39228199]
[1737084241308,0.049478,101070.0,101060.0,0.06693696]
[1737084241709,0.084478,101070.0,101060.0,0.06693696]
[1737084245715,0.084478,101070.0,101060.0,0.04893695]
[1737084248114,0.445278,101070.0,101060.0,0.01745496]
[1737084248416,0.084478,101070.0,101050.0,0.21148459]
[1737084248614,0.084478,101070.0,101050.0,0.26096859]
[1737084249007,0.118478,101070.0,101050.0,0.26096859]
[1737084249705,0.118478,101070.0,101050.0,0.22841776]
[1737084250308,0.049483,101060.0,101050.0,0.13431817]
[1737084250815,0.049483,101060.0,101050.0,0.11631816]
[1737084251920,0.049483,101060.0,101050.0,0.06641817]
[1737084252608,0.081783,101060.0,101050.0,0.06641817]
[1737084255819,0.081783,101060.0,101050.0,0.04841816]
[1737084256215,0.081783,101060.0,101050.0,0.50331775]
[1737084257713,0.081783,101060.0,101050.0,0.14251775]
[1737084259014,0.081783,101060.0,101050.0,0.50331775]
[1737084259220,0.118479,101070.0,101060.0,0.049483]
[1737084259421,0.118479,101070.0,101060.0,0.14358259]
[1737084260711,0.64747201,101080.0,101070.0,0.03147799]
[1737084261521,0.88070316,101080.0,101070.0,0.03147799]
[1737084262514,0.70525994,101080.0,101070.0,0.03147799]
[1737084264320,0.79935953,101080.0,101070.0,0.03147799]
[1737084264822,0.77125179,101080.0,101070.0,0.03147799]
[1737084265419,0.049478,101070.0,101060.0,0.410281]
[1737084265619,0.113878,101070.0,101060.0,0.410281]
[1737084265818,0.113878,101070.0,101060.0,0.48638058]
[1737084266922,0.082078,101070.0,101060.0,0.48638058]
[1737084267125,0.25431799,101070.0,101060.0,0.48638058]
[1737084270424,0.20483999,101070.0,101060.0,0.48638058]
[1737084270727,0.43901819,101070.0,101060.0,0.46838057]
[1737084271631,0.20483999,101080.0,101060.0,0.46838057]
[1737084271824,0.20483999,101080.0,101070.0,0.50437759]
[1737084272826,1.4102572,101090.0,101070.0,0.50437759]
[1737084273028,1.2661256,101090.0,101070.0,0.50437759]
[1737084273220,1.3155976,101090.0,101070.0,0.50437759]
[1737084273818,1.2661256,101090.0,101070.0,0.50437759]
[1737084274021,1.3155976,101090.0,101070.0,0.50437759]
[1737084274224,1.2661256,101090.0,101070.0,0.45489959]
[1737084274427,1.2661256,101090.0,101080.0,0.049473]
[1737084274723,1.0319474,101090.0,101080.0,0.049473]
[1737084275932,1.0319474,101090.0,101080.0,0.03147299]
[1737084276123,0.82710741,101090.0,101080.0,0.03147299]
[1737084276926,0.049473,101080.0,101070.0,0.50437559]
[1737084277730,0.77763741,101090.0,101070.0,0.45489959]
[1737084277927,0.77763741,101090.0,101080.0,0.049473]
[1737084277928,0.82710941,101090.0,101080.0,0.049473]
[1737084278626,1.0319494,101090.0,101080.0,0.049473]
[1737084279928,0.71191199,101090.0,101080.0,0.049473]
[1737084280731,0.71191199,101090.0,101080.0,0.03147299]
[1737084282537,0.76935794,101090.0,101080.0,0.03147299]
[1737084284536,1.06030104,101090.0,101080.0,0.03147299]
[1737084285334,1.01082904,101090.0,101070.0,0.5028906]
[1737084285633,0.049473,101080.0,101070.0,0.5523666]
[1737084285931,0.049473,101080.0,101070.0,0.53436659]
[1737084286834,0.25420588,101080.0,101070.0,0.53436659]
[1737084287438,0.25420588,101080.0,101070.0,0.51998103]
[1737084289326,0.049473,101080.0,101070.0,0.51998103]
[1737084293127,0.48818631,101080.0,101070.0,0.51998103]
[1737084293837,0.48818631,101080.0,101070.0,0.58169505]
[1737084294038,0.43871331,101080.0,101070.0,0.58169505]
[1737084294227,0.43871331,101080.0,101070.0,0.64799505]
[1737084294930,0.55322904,101090.0,101070.0,0.64799505]
[1737084295136,0.55322904,101090.0,101080.0,0.53370104]
[1737084295330,0.31175194,101100.0,101080.0,0.53370104]
[1737084295635,0.31175194,101100.0,101090.0,0.11118202]
[1737084296434,0.11118002,101100.0,101090.0,0.11118202]
[1737084296735,0.11118002,101100.0,101090.0,0.09318201]
[1737084296937,0.049466,101100.0,101090.0,0.09318201]
[1737084297439,0.049466,101100.0,101090.0,0.049468]
[1737084298338,0.049466,101100.0,101090.0,0.14348891]
[1737084300733,0.049466,101100.0,101090.0,0.1254889]
[1737084300938,0.049466,101100.0,101090.0,0.03146799]
[1737084301730,0.049466,101100.0,101090.0,0.04590454]
[1737084304640,0.7477431,101110.0,101090.0,0.10845746]
[1737084304843,0.7972021,101110.0,101100.0,0.049463]
[1737084305043,0.7972021,101110.0,101100.0,0.14348391]
[1737084305646,0.4364021,101110.0,101100.0,0.14348391]
[1737084305846,0.4364021,101110.0,101100.0,0.1254839]
[1737084306647,0.4364021,101110.0,101100.0,0.4862839]
[1737084306947,0.096,101110.0,101100.0,0.4862839]
[1737084309351,0.145458,101110.0,101100.0,0.39226299]
[1737084309537,0.23947891,101110.0,101100.0,0.03146299]
[1737084310253,0.23947891,101110.0,101090.0,0.42470255]
[1737084310254,0.049463,101100.0,101090.0,0.42470255]
[1737084310451,0.14348391,101100.0,101090.0,0.42470255]
[1737084310753,0.14348391,101100.0,101090.0,0.049466]
[1737084312853,0.049463,101100.0,101090.0,0.049466]
[1737084313739,0.410263,101100.0,101090.0,0.0640842]
[1737084314346,0.50428391,101100.0,101090.0,0.0640842]
[1737084314542,0.410263,101100.0,101090.0,0.0640842]
[1737084315849,0.410263,101100.0,101090.0,0.04608419]
[1737084316649,0.049468,101090.0,101070.0,0.410276]
[1737084316856,0.049473,101080.0,101070.0,0.410276]
[1737084318248,0.25401857,101080.0,101070.0,0.410276]
[1737084319950,0.25401857,101080.0,101070.0,0.51911312]
[1737084320751,0.049473,101080.0,101070.0,0.51911312]
[1737084321753,0.48780846,101080.0,101070.0,0.51911312]
[1737084322455,0.48780846,101080.0,101070.0,0.42509221]
[1737084323161,0.43833546,101080.0,101070.0,0.51911312]
[1737084323545,0.43833546,101080.0,101070.0,0.61313403]
[1737084323850,0.43833546,101080.0,101070.0,0.70853403]
[1737084324053,0.0951,101090.0,101080.0,0.049473]
[1737084324258,0.0951,101090.0,101080.0,0.50429391]
[1737084325057,0.4559,101090.0,101080.0,0.14349391]
[1737084325457,0.505368,101090.0,101080.0,0.049473]
[1737084325651,0.59938891,101090.0,101080.0,0.049473]
[1737084326250,0.505368,101090.0,101080.0,0.049473]
[1737084330064,0.73915789,101090.0,101080.0,0.049473]
[1737084333959,0.71000589,101090.0,101080.0,0.049473]
[1737084338157,0.8040268,101090.0,101080.0,0.049473]
[1737084340362,0.71000589,101090.0,101080.0,0.049473]
[1737084342067,0.505368,101090.0,101080.0,0.049473]
[1737084345866,0.71000589,101090.0,101080.0,0.049473]
[1737084346966,0.94379578,101090.0,101080.0,0.049473]
[1737084349473,0.505368,101090.0,101080.0,0.049473]
[1737084351674,0.71000589,101090.0,101080.0,0.049473]
[1737084355676,0.049473,101080.0,101070.0,0.42509221]
[1737084357475,0.25411089,101080.0,101070.0,0.42509221]
[1737084360478,0.20463789,101080.0,101070.0,0.69680561]
[1737084360870,0.26458989,101090.0,101080.0,0.049473]
[1737084361094,0.23378989,101090.0,101080.0,0.50429391]
[1737084361277,0.23378989,101090.0,101080.0,0.53589391]
[1737084361782,0.23378989,101100.0,101090.0,0.049468]
[1737084361980,0.23378989,101100.0,101090.0,0.56698891]
[1737084362680,0.50446001,101110.0,101100.0,0.049463]
[1737084362879,0.14306,101110.0,101100.0,0.049463]
[1737084363073,0.0936,101110.0,101100.0,0.14348391]
[1737084363581,0.0936,101110.0,101100.0,0.049463]
[1737084364883,0.143058,101110.0,101100.0,0.049463]
[1737084365679,0.23707891,101110.0,101100.0,0.049463]
[1737084365979,0.23707891,101110.0,101100.0,0.03146299]
[1737084367084,0.143058,101110.0,101100.0,0.03146299]
[1737084367488,0.143058,101110.0,101100.0,0.05423639]
[1737084370789,0.143058,101110.0,101100.0,0.0227734]
[1737084371088,0.143058,101110.0,101100.0,0.410263]
[1737084375488,0.049463,101100.0,101090.0,0.43313958]
[1737084375792,0.049463,101100.0,101090.0,0.41513957]
[1737084376294,0.049463,101100.0,101090.0,0.07233958]
[1737084376886,0.50428391,101100.0,101090.0,0.07233958]
[1737084377083,0.50428391,101100.0,101090.0,0.02287258]
[1737084377289,0.049468,101090.0,101080.0,0.17769249]
[1737084377586,0.59668891,101090.0,101080.0,0.17769249]
[1737084377983,0.59668891,101090.0,101080.0,0.19976667]
[1737084378388,0.59668891,101090.0,101080.0,0.02207418]
[1737084378694,0.049473,101080.0,101070.0,0.50429691]
[1737084378898,0.049473,101080.0,101070.0,0.410276]
[1737084381000,0.049473,101080.0,101070.0,0.049476]
[1737084383296,0.049473,101080.0,101070.0,0.07238492]
[1737084384297,0.50429391,101080.0,101070.0,0.02290892]
[1737084384499,0.049483,101060.0,101050.0,0.00148416]
[1737084384802,0.14350391,101060.0,101050.0,0.00148416]
[1737084385195,0.50430391,101060.0,101050.0,0.00148416]
[1737084385395,0.50430391,101060.0,101040.0,0.14350991]
[1737084385600,0.049488,101050.0,101040.0,0.049489]
[1737084386203,0.082788,101050.0,101040.0,0.049489]
[1737084387201,0.443588,101050.0,101040.0,0.049489]
[1737084387400,0.148988,101050.0,101040.0,0.049489]
[1737084388504,0.509788,101050.0,101040.0,0.049489]
[1737084388707,0.60380891,101050.0,101030.0,0.410296]
[1737084388901,0.60380891,101050.0,101030.0,0.52711775]
[1737084389207,0.24300891,101050.0,101030.0,0.52711775]
[1737084391204,0.14351391,101040.0,101030.0,0.43309684]
[1737084394806,0.049493,101040.0,101030.0,0.43309684]
[1737084397916,0.14351391,101040.0,101030.0,0.43309684]
[1737084406118,0.049493,101040.0,101030.0,0.43309684]
[1737084413023,0.049493,101040.0,101030.0,0.84732786]
[1737084413916,0.24300991,101050.0,101040.0,0.049492]
[1737084414125,0.148989,101050.0,101040.0,0.049492]
[1737084415522,0.0995,101050.0,101040.0,0.049492]
[1737084416060,0.0995,101050.0,101040.0,0.46533311]
[1737084416741,0.0995,101050.0,101040.0,0.4473331]
[1737084420417,0.0995,101050.0,101040.0,0.26911548]
[1737084420926,0.0995,101050.0,101040.0,0.23762349]
[1737084421134,0.24300891,101050.0,101040.0,0.28711549]
[1737084425830,0.24300891,101050.0,101040.0,0.26911548]
[1737084426028,0.24300891,101050.0,101040.0,0.049492]
[1737084426927,0.60380891,101050.0,101040.0,0.049492]
[1737084427433,0.57155845,101050.0,101040.0,0.049492]
[1737084428725,0.57155845,101050.0,101040.0,0.22773215]
[1737084429735,0.57155845,101050.0,101040.0,0.049492]
[1737084430030,0.52207045,101050.0,101030.0,0.62361144]
[1737084430236,0.5338339,101040.0,101030.0,0.20104099]
[1737084430431,0.11126345,101040.0,101030.0,0.20104099]
[1737084431432,0.14363822,101040.0,101030.0,0.20104099]
[1737084431637,0.14363822,101040.0,101030.0,0.25053799]
[1737084431937,0.049493,101040.0,101030.0,0.25053799]
[1737084434739,0.14363822,101040.0,101030.0,0.25053799]
[1737084435135,0.50443822,101040.0,101030.0,0.25053799]
[1737084435328,0.14363822,101040.0,101030.0,0.25053799]
[1737084435938,0.14363822,101040.0,101030.0,0.07229784]
[1737084439148,0.50443822,101040.0,101030.0,0.07229784]
[1737084439949,0.94409846,101040.0,101030.0,0.07229784]
[1737084443641,0.50443822,101040.0,101030.0,0.07229784]
[1737084444754,0.60393422,101050.0,101040.0,0.049493]
[1737084445056,0.24313422,101050.0,101040.0,0.049493]
[1737084445956,0.24313422,101050.0,101040.0,0.03149299]
[1737084449264,0.049493,101040.0,101030.0,0.25053699]
[1737084449553,0.14363822,101040.0,101030.0,0.25053699]